bitfinex-derivatives/quotes_ETHF0:USTF0_20250214
["timestamp","ask_amount","ask_price","bid_price","bid_amount"]
[1739496066365,0.00556258,2679.4,2679.3,0.74635]
[1739496066565,0.00556258,2679.4,2679.2,0.74636]
[1739496067075,0.00556258,2679.4,2679.3,0.74635]
[1739496068370,0.75189258,2679.4,2679.1,45.6874]
[1739496068565,0.75189258,2679.4,2679.1,5.63379]
[1739496068967,0.00556258,2679.4,2679.1,4.8874]
[1739496069169,0.74636,2679.3,2679.1,4.8874]
[1739496069479,0.75190258,2679.4,2679.1,2.42599]
[1739496069664,0.00556258,2679.4,2679.1,2.42599]
[1739496069865,0.75189258,2679.4,2679.1,2.42599]
[1739496070273,0.74635,2679.3,2679.1,2.42599]
[1739496070474,0.75190258,2679.4,2679.1,2.42599]
[1739496071072,0.00556258,2679.4,2679.1,2.42599]
[1739496071273,0.74635,2679.3,2679.1,1.6796]
[1739496071474,0.75191258,2679.4,2679.1,2.426]
[1739496071973,0.74636,2679.3,2679.1,2.426]
[1739496072271,0.74635,2679.3,2679.1,1.6796]
[1739496072872,0.74635,2679.3,2679.1,2.42599]
[1739496073073,0.74635,2679.3,2679.1,1.6796]
[1739496073273,0.74635,2679.3,2679.1,2.426]
[1739496073574,0.00556258,2679.4,2679.1,1.6796]
[1739496073876,0.00556258,2679.4,2679.2,0.74636]
[1739496074273,0.75189258,2679.4,2679.2,0.74636]
[1739496074466,0.00556258,2679.4,2679.2,0.74636]
[1739496074673,0.00556258,2679.4,2679.1,4.8874]
[1739496074971,0.00556258,2679.4,2679.3,0.74635]
[1739496075370,0.00556258,2679.4,2679.3,41.54635]
[1739496075568,0.00556258,2679.4,2679.3,44.48462896]
[1739496075978,4.8368,2680.1,2679.3,43.73827896]
[1739496076172,4.8368,2680.1,2679.9,0.74617]
[1739496076173,0.43110173,2680.0,2679.9,0.74617]
[1739496076380,0.43110173,2680.0,2679.9,1.1354]
[1739496076576,2.37514,2680.1,2679.9,1.1354]
[1739496077073,1.629,2680.1,2679.9,1.1354]
[1739496077575,2.37514,2680.1,2679.9,1.1354]
[1739496077776,1.6466,2680.4,2679.9,1.1354]
[1739496077977,0.74612,2680.2,2679.9,1.88157]
[1739496078278,0.74613,2680.1,2679.9,1.88158]
[1739496078478,1.628,2680.3,2679.9,1.1354]
[1739496078670,2.37408,2680.3,2680.0,0.74613]
[1739496079171,3.2078,2680.5,2679.9,1.1354]
[1739496079172,1.628,2680.4,2679.9,1.1354]
[1739496079367,1.628,2680.4,2680.0,0.5547]
[1739496079574,1.628,2680.4,2680.2,0.74608]
[1739496080578,3.95382,2680.5,2680.2,0.74608]
[1739496080869,2.93827896,2681.0,2680.2,0.74608]
[1739496080870,1.629,2681.0,2680.8,0.74592]
[1739496081074,1.629,2681.0,2680.7,0.74595]
[1739496081873,1.63,2681.1,2680.8,0.74592]
[1739496082176,1.1737,2681.2,2680.7,3.2078]
[1739496082374,2.2196,2681.2,2680.7,3.2078]
[1739496082575,2.96542,2681.2,2680.9,0.74588]
[1739496082772,2.96542,2681.2,2681.0,0.5634]
[1739496082977,2.2196,2681.2,2681.0,0.5634]
[1739496083279,3.2078,2681.1,2680.5,4.07347896]
[1739496083475,0.5766,2681.0,2680.6,0.5634]
[1739496083674,0.5766,2681.0,2680.7,0.74596]
[1739496083877,0.5766,2681.0,2680.6,41.3634]
[1739496084179,0.5766,2681.0,2680.8,0.74592]
[1739496084380,0.5766,2681.0,2680.6,41.3634]
[1739496084978,1.32249,2681.0,2680.6,41.3634]
[1739496085178,1.32249,2681.0,2680.7,0.74595]
[1739496085380,0.5766,2681.0,2680.6,41.3634]
[1739496085572,3.95358,2681.4,2681.1,0.74585]
[1739496085768,1.63,2681.2,2681.1,0.74585]
[1739496086274,1.63,2681.2,2680.8,3.2078]
[1739496086469,1.63,2681.2,2680.9,0.74588]
[1739496086979,1.629,2681.3,2680.8,3.2078]
[1739496087276,4.8368,2681.4,2681.2,0.7458]
[1739496088080,0.7458,2681.3,2680.8,46.94607896]
[1739496088282,0.7458,2681.3,2681.0,0.74586]
[1739496088580,5.58256,2681.4,2681.1,1.33425]
[1739496088783,4.8368,2681.4,2681.1,1.33425]
[1739496088981,4.8368,2681.4,2681.1,0.5884]
[1739496089585,4.8348,2681.4,2681.1,0.5884]
[1739496089774,4.8348,2681.4,2681.1,1.33423]
[1739496089775,5.58058,2681.4,2681.1,1.33423]
[1739496090171,4.8348,2681.4,2681.1,0.5884]
[1739496090384,0.74582,2681.2,2681.1,0.5884]
[1739496091178,1.33882,2681.3,2681.1,0.5884]
[1739496091374,0.74582,2681.2,2681.1,0.5884]
[1739496091579,0.593,2681.3,2681.1,0.5884]
[1739496091889,5.58058,2681.4,2681.1,0.5884]
[1739496092080,4.8348,2681.4,2681.1,0.5884]
[1739496092481,4.8348,2681.4,2681.2,0.74581]
[1739496092687,5.58057,2681.4,2681.2,0.74581]
[1739496093078,0.7458,2681.3,2681.1,1.33424]
[1739496093485,0.74579,2681.3,2681.1,0.5884]
[1739496093781,0.74599,2680.6,2680.5,0.5664]
[1739496093982,1.649,2680.8,2680.5,0.5664]
[1739496094187,3.2078,2681.0,2680.5,0.5664]
[1739496094188,0.5477,2681.0,2680.5,0.5664]
[1739496094386,0.5533,2680.8,2680.7,0.74596]
[1739496094583,1.649,2680.9,2680.5,0.5664]
[1739496094784,0.74597,2680.7,2680.5,0.5664]
[1739496095083,3.2078,2680.7,2680.0,3.21339816]
[1739496095281,3.2078,2680.4,2680.0,3.21339816]
[1739496095483,0.74612,2680.1,2680.0,0.00559816]
[1739496096585,3.95392,2680.1,2680.0,0.00559816]
[1739496096788,4.0147614,2680.1,2680.0,0.00559816]
[1739496096981,0.74617,2680.0,2679.6,3.2078]
[1739496097181,1.654,2679.9,2679.6,3.2078]
[1739496097786,0.74631,2679.5,2679.3,3.7587]
[1739496097991,0.74631,2679.5,2679.3,3.2078]
[1739496098691,0.74627,2679.6,2679.3,3.2078]
[1739496098993,0.74632,2679.4,2679.1,0.57529816]
[1739496099181,1.655,2679.5,2679.1,0.57529816]
[1739496099492,1.655,2679.5,2679.2,3.95416]
[1739496099693,0.5917,2679.7,2679.2,3.2078]
[1739496099886,4.8628,2679.8,2679.5,0.74629]
[1739496100080,4.8628,2679.8,2679.6,0.5823]
[1739496100387,3.2078,2679.8,2679.6,0.5823]
[1739496100591,3.2078,2679.8,2679.7,0.5643]
[1739496100793,0.00559816,2680.0,2679.7,0.5643]
[1739496101090,0.75176816,2680.0,2679.7,0.5643]
[1739496101889,0.74618,2679.9,2679.7,0.5643]
[1739496102596,0.00559816,2680.0,2679.7,0.5643]
[1739496102894,0.00559816,2680.0,2679.9,0.74618]
[1739496103082,0.00559816,2680.0,2679.8,40.8]
[1739496104901,0.00559816,2680.0,2679.9,0.74618]
[1739496105101,0.00559816,2680.0,2679.8,40.8]
[1739496105307,0.00559816,2680.0,2679.8,41.54619]
[1739496105699,0.00559816,2680.0,2679.8,40.8]
[1739496106002,0.00559816,2680.0,2679.8,44.75399]
[1739496106200,0.00559816,2680.0,2679.8,44.0078]
[1739496106394,0.00559816,2680.0,2679.9,0.74618]
[1739496106593,0.00559816,2680.0,2679.9,1.31038]
[1739496106793,4.8588,2680.7,2680.4,0.74602]
[1739496107200,5.60476,2680.7,2680.4,0.74602]
[1739496107403,5.60477,2680.7,2680.4,0.74602]
[1739496107801,1.651,2680.7,2680.3,1.141]
[1739496108107,0.74599,2680.6,2680.3,1.88705]
[1739496108407,2.39697,2680.7,2680.3,1.88705]
[1739496108808,2.39697,2680.7,2680.4,0.74604]
[1739496109109,0.746,2680.6,2680.3,1.88706]
[1739496110208,0.74603,2680.5,2680.3,1.141]
[1739496110909,0.74603,2680.5,2680.3,1.88707]
[1739496111106,0.74603,2680.5,2680.3,1.141]
[1739496111306,0.74611,2680.2,2680.0,2.936]
[1739496111911,2.39308,2680.3,2680.0,3.68214]
[1739496112310,1.647,2680.3,2680.1,0.74612]
[1739496112506,1.647,2680.3,2680.2,0.7461]
[1739496113104,1.647,2680.3,2680.1,0.74611]
[1739496113499,0.563,2680.4,2680.0,2.936]
[1739496113714,5.4081,2680.6,2680.0,2.936]
[1739496114011,5.4081,2680.6,2680.1,0.5502]
[1739496114208,0.74605,2680.4,2680.1,0.7461]
[1739496114511,0.74611,2680.2,2680.0,3.68214]
[1739496114806,0.74608,2680.3,2680.1,0.74611]
[1739496115006,0.5586,2680.5,2680.1,0.74611]
[1739496115213,0.5586,2680.5,2680.2,0.74609]
[1739496115414,0.74604,2680.4,2680.2,0.74609]
[1739496115612,1.30462,2680.5,2680.2,0.74607]
[1739496115914,3.7631,2680.6,2680.5,0.74601]
[1739496116107,3.2078,2680.6,2680.4,0.74602]
[1739496116506,3.2078,2680.6,2680.4,0.5828]
[1739496116708,3.9538,2680.6,2680.4,1.32883]
[1739496116901,0.74603,2680.5,2680.2,0.74608]
[1739496117114,0.74604,2680.5,2680.2,0.74608]
[1739496117407,0.74604,2680.5,2680.3,0.74606]
[1739496117604,0.74604,2680.5,2680.0,2.936]
[1739496117605,3.2078,2680.6,2680.4,0.74603]
[1739496118012,3.9538,2680.6,2680.0,2.936]
[1739496118314,0.74602,2680.5,2680.3,0.74605]
[1739496118508,3.2078,2680.6,2680.1,40.8]
[1739496118708,3.2078,2680.6,2680.5,0.74601]
[1739496118915,3.9538,2680.6,2680.3,0.74605]
[1739496119107,3.9538,2680.6,2680.3,1.32915]
[1739496119311,3.2078,2680.6,2680.3,0.5831]
[1739496119708,3.95381,2680.6,2680.3,1.32915]
[1739496119909,3.95381,2680.6,2680.4,0.74604]
[1739496120207,3.2078,2680.6,2680.3,1.32916]
[1739496120517,3.2078,2680.6,2680.3,0.5831]
[1739496120812,3.9538,2680.6,2680.4,0.74604]
[1739496121202,3.9538,2680.6,2680.3,1.32915]
[1739496121405,0.74602,2680.5,2680.3,1.32915]
[1739496121616,3.95381,2680.6,2680.3,1.32915]
[1739496122003,3.9538,2680.6,2680.3,1.32914]
[1739496122313,3.9538,2680.6,2680.3,0.5831]
[1739496122611,2.38897,2680.7,2680.5,0.74601]
[1739496122813,1.643,2680.7,2680.3,0.5831]
[1739496123013,2.38896,2680.7,2680.5,0.746]
[1739496123312,1.643,2680.7,2680.4,0.74603]
[1739496123512,2.38897,2680.7,2680.5,0.746]
[1739496124415,1.34001,2680.9,2680.7,0.74595]
[1739496124712,3.2078,2681.5,2680.8,3.2078]
[1739496124910,3.56848374,2681.4,2681.1,0.74583]
[1739496125114,3.50768,2681.4,2681.2,0.74582]
[1739496125509,2.7619,2681.4,2681.2,0.74582]
[1739496126116,3.50768,2681.4,2681.1,0.74583]
[1739496126514,2.7619,2681.4,2680.9,1.7107]
[1739496126712,2.7619,2681.4,2681.0,0.74587]
[1739496126713,0.7458,2681.3,2681.0,0.74587]
[1739496127015,2.7619,2681.4,2680.9,0.5895]
[1739496127314,0.74579,2681.3,2681.0,0.74586]
[1739496127517,3.50768,2681.4,2681.1,0.74582]
[1739496128523,0.7458,2681.3,2681.0,0.74586]
[1739496128820,2.7619,2681.4,2680.9,0.5895]
[1739496129013,3.50768,2681.4,2681.0,0.74587]
[1739496129218,2.7619,2681.4,2681.0,0.74587]
[1739496129518,0.74579,2681.3,2681.0,0.74587]
[1739496129718,2.7619,2681.4,2680.9,0.5895]
[1739496130018,3.2078,2681.5,2681.4,0.74576]
[1739496130912,1.635,2681.7,2681.4,0.74576]
[1739496131107,0.74571,2681.6,2681.3,0.74577]
[1739496131415,0.74579,2681.3,2681.1,3.2078]
[1739496131615,1.7049,2681.5,2681.1,3.2078]
[1739496131810,0.74577,2681.4,2681.2,0.74581]
[1739496132013,0.74577,2681.4,2681.1,3.95364]
[1739496132312,1.7049,2681.5,2681.1,3.95364]
[1739496132517,0.74586,2681.1,2680.9,1.33539]
[1739496132914,0.74583,2681.2,2680.9,1.33539]
[1739496133111,1.7049,2681.5,2680.9,0.5895]
[1739496133609,0.7458,2681.3,2681.0,0.74585]
[1739496133813,0.7458,2681.3,2681.1,0.74584]
[1739496134113,1.7049,2681.5,2681.1,2.93827896]
[1739496134310,1.7049,2681.5,2681.4,0.74576]
[1739496134511,2.45065,2681.5,2681.2,1.2983]
[1739496134712,1.7049,2681.5,2681.2,1.2983]
[1739496134918,2.45065,2681.5,2681.2,0.5525]
[1739496135114,1.7049,2681.5,2681.4,0.74576]
[1739496135314,1.1408,2681.5,2681.4,0.74576]
[1739496135821,0.581,2681.5,2681.4,0.74576]
[1739496136511,0.581,2681.5,2681.2,1.1298]
[1739496136714,0.581,2681.5,2681.4,0.74576]
[1739496137017,0.581,2681.5,2681.3,0.74578]
[1739496137220,1.32674,2681.5,2681.3,0.74578]
[1739496137520,0.581,2681.5,2681.4,0.74576]
[1739496137817,0.581,2681.5,2681.3,0.74578]
[1739496137818,1.32675,2681.5,2681.3,0.74578]
[1739496138415,1.32675,2681.5,2681.3,0.74579]
[1739496139416,0.581,2681.5,2681.3,0.74579]
[1739496140412,0.581,2681.5,2681.2,0.5525]
[1739496140614,1.32674,2681.5,2681.3,0.74577]
[1739496140814,3.95351,2681.6,2681.4,0.74576]
[1739496141011,0.74575,2681.5,2681.3,0.74578]
[1739496141421,0.74579,2681.3,2681.2,0.5525]
[1739496141811,0.74578,2681.4,2681.2,0.5525]
[1739496142014,3.2078,2681.6,2681.2,0.5525]
[1739496142721,0.74578,2681.4,2681.2,1.29832]
[1739496143014,0.74579,2681.3,2681.2,0.5525]
[1739496143408,3.2078,2681.6,2681.1,3.2078]
[1739496143409,0.74582,2681.2,2681.1,3.2078]
[1739496143609,1.29002,2681.2,2681.1,3.2078]
[1739496144017,0.5733,2681.7,2681.1,6.14607896]
[1739496144213,1.627,2682.1,2681.9,0.74562]
[1739496144411,1.1114,2682.0,2681.9,0.74562]
[1739496144818,1.1114,2682.0,2681.4,3.2078]
[1739496145121,0.74564,2681.9,2681.6,0.74571]
[1739496145310,0.74571,2681.7,2681.4,3.95355]
[1739496145513,3.2078,2681.9,2681.4,3.95356]
[1739496145924,0.7457,2681.7,2681.4,3.95356]
[1739496146219,3.95343,2681.9,2681.4,3.2078]
[1739496146418,1.85702,2682.0,2681.7,0.74567]
[1739496147324,1.85701,2682.0,2681.7,0.74567]
[1739496148422,1.627,2681.9,2681.4,3.2078]
[1739496149023,0.74565,2681.8,2681.5,0.74571]
[1739496149223,0.74565,2681.8,2681.4,3.2078]
[1739496149524,0.74565,2681.8,2681.6,0.7457]
[1739496149824,1.627,2681.9,2681.7,0.74567]
[1739496150223,2.37262,2681.9,2681.7,0.74567]
[1739496150425,1.627,2681.9,2681.7,0.74567]
[1739496150625,1.626,2681.9,2681.7,0.74567]
[1739496151125,1.626,2681.9,2681.4,3.2078]
[1739496151519,0.74574,2681.5,2681.4,3.2078]
[1739496151723,0.74572,2681.6,2681.4,3.2078]
[1739496151923,0.5995,2681.5,2681.4,3.2078]
[1739496152525,1.34524,2681.5,2681.4,3.2078]
[1739496153126,0.5995,2681.5,2681.2,1.31051]
[1739496153527,1.34524,2681.5,2681.3,0.74578]
[1739496153826,0.5995,2681.5,2681.4,0.74576]
[1739496154829,0.74567,2681.8,2681.6,0.7457]
[1739496155026,0.74567,2681.8,2681.4,6.14607896]
[1739496155329,0.7457,2681.7,2681.5,0.74573]
[1739496155528,0.74566,2681.8,2681.6,0.7457]
[1739496156032,2.2106,2681.9,2681.6,0.7457]
[1739496156331,2.95624,2681.9,2681.6,0.7457]
[1739496156532,0.74566,2681.8,2681.6,0.7457]
[1739496157036,0.74566,2681.8,2681.5,0.74572]
[1739496157233,0.74567,2681.8,2681.5,0.74571]
[1739496157730,0.74567,2681.8,2681.6,0.7457]
[1739496158133,0.74574,2681.5,2681.4,3.2078]
[1739496158332,5.07194,2681.8,2681.2,0.5647]
[1739496158630,0.74579,2681.3,2681.2,0.5647]
[1739496159032,0.5609,2681.3,2681.2,0.5647]
[1739496159635,0.5609,2681.3,2681.2,1.31052]
[1739496159830,1.30669,2681.3,2681.2,0.5647]
[1739496160031,0.5609,2681.3,2681.2,0.5647]
[1739496160235,1.30669,2681.3,2681.2,1.31052]
[1739496160536,0.5609,2681.3,2681.2,1.31052]
[1739496160836,1.30257,2681.4,2681.2,1.31051]
[1739496161028,0.74579,2681.3,2681.2,0.5647]
[1739496164429,0.5568,2681.4,2681.1,6.69037896]
[1739496164639,0.74582,2681.2,2681.1,6.69037896]
[1739496164932,0.5568,2681.4,2681.1,6.69037896]
[1739496165131,0.74579,2681.3,2681.1,47.49037896]
[1739496165327,0.5568,2681.4,2681.1,47.49037896]
[1739496165529,0.74579,2681.3,2681.2,0.74581]
[1739496165934,0.5568,2681.4,2681.1,47.49037896]
[1739496166137,0.7458,2681.3,2681.1,48.23620896]
[1739496167639,0.5568,2681.4,2681.1,47.49037896]
[1739496167838,1.625,2681.5,2681.3,0.74578]
[1739496167839,2.37074,2681.5,2681.3,0.74578]
[1739496168041,0.74572,2681.6,2681.4,3.95356]
[1739496168345,1.62,2681.8,2681.4,6.14607896]
[1739496168636,2.36566,2681.8,2681.6,0.74569]
[1739496168839,2.36566,2681.8,2681.7,0.549]
[1739496169839,1.62,2681.8,2681.7,0.549]
[1739496170235,2.36565,2681.8,2681.7,0.549]
[1739496171236,1.62,2681.8,2681.7,1.29468]
[1739496172635,0.5765,2682.1,2681.8,0.74564]
[1739496172840,2.94008,2682.1,2681.8,0.74564]
[1739496173843,2.94009,2682.1,2681.8,0.74564]
[1739496174242,0.5483,2682.3,2682.0,2.93827896]
[1739496174434,1.619,2682.3,2682.1,0.74556]
[1739496174635,1.619,2682.3,2682.2,0.5517]
[1739496174943,2.36451,2682.3,2682.2,0.5517]
[1739496175640,1.618,2682.4,2682.2,0.5517]
[1739496175843,1.618,2682.4,2682.2,1.2936925]
[1739496176141,1.618,2682.4,2682.3,0.74551]
[1739496176942,1.618,2682.5,2682.3,3.95329]
[1739496177440,1.6945,2682.7,2682.3,3.2078]
[1739496177635,1.125,2682.7,2682.4,0.74547]
[1739496177941,1.618,2682.6,2682.5,0.74546]
[1739496178138,1.618,2682.6,2682.4,0.74547]
[1739496178540,1.618,2682.6,2682.3,6.14607896]
[1739496178741,2.36344,2682.6,2682.3,6.89157896]
[1739496178941,0.74546,2682.5,2682.3,6.89157896]
[1739496179141,1.618,2682.6,2682.3,6.89157896]
[1739496179341,1.618,2682.6,2682.3,3.2078]
[1739496179542,0.74551,2682.3,2682.2,0.5481725]
[1739496180545,0.74554,2682.3,2681.9,0.75119816]
[1739496180745,0.74557,2682.1,2682.0,0.5661]
[1739496181045,0.7456,2682.0,2681.9,0.00559816]
[1739496181242,1.2886,2682.0,2681.9,0.00559816]
[1739496181643,1.8738,2682.0,2681.9,0.00559816]
[1739496181847,2.4424,2682.0,2681.9,0.00559816]
[1739496186651,4.0584,2682.0,2681.9,0.00559816]
[1739496187249,2.7442,2682.0,2681.9,0.00559816]
[1739496187552,1.617,2682.1,2682.0,0.7456]
[1739496187750,1.617,2682.2,2682.1,0.74556]
[1739496187950,1.617,2682.2,2682.0,0.5719]
[1739496188163,1.617,2682.2,2681.9,0.00559816]
[1739496188164,0.7456,2682.0,2681.9,0.00559816]
[1739496189357,1.8698,2682.0,2681.9,0.00559816]
[1739496196754,5.0776,2682.0,2681.9,0.00559816]
[1739496197653,1.8698,2682.0,2681.9,0.00559816]
[1739496197858,5.0776,2682.0,2681.9,0.00559816]
[1739496198448,1.86414,2681.8,2681.1,3.2078]
[1739496198659,2.93827896,2681.6,2681.1,3.2078]
[1739496198850,1.1278,2681.5,2681.1,3.2078]
[1739496199053,0.7458,2681.3,2681.1,3.2078]
[1739496199253,2.3618,2681.3,2681.1,3.2078]
[1739496199449,1.616,2681.3,2681.1,3.2078]
[1739496199660,1.616,2681.3,2681.2,0.74582]
[1739496200560,0.00559816,2681.5,2681.4,0.74576]
[1739496200857,0.00559816,2681.5,2681.4,3.95356]
[1739496202454,0.00559816,2681.5,2681.4,3.2078]
[1739496202665,0.74576,2681.4,2681.3,1.1232]
[1739496202958,0.74579,2681.3,2681.1,3.95364]
[1739496203158,0.74579,2681.3,2681.1,4.3032]
[1739496203558,0.57819816,2681.5,2681.1,4.3032]
[1739496203750,0.57819816,2681.5,2681.4,3.95356]
[1739496203751,0.00559816,2681.5,2681.4,3.95356]
[1739496204154,0.75133816,2681.5,2681.4,3.2078]
[1739496204458,0.00559816,2681.5,2681.4,3.2078]
[1739496205062,0.75133816,2681.5,2681.4,3.2078]
[1739496205261,0.74578,2681.4,2681.1,5.04904]
[1739496205562,1.31315816,2681.5,2681.1,4.3032]
[1739496205761,0.75135816,2681.5,2681.3,0.74579]
[1739496206159,0.75135816,2681.5,2681.2,0.7458]
[1739496206462,0.74578,2681.4,2681.1,5.04903]
[1739496206867,0.00559816,2681.5,2681.1,4.3032]
[1739496207066,0.74576,2681.4,2681.2,0.7458]
[1739496207366,0.74577,2681.4,2681.2,0.74581]
[1739496207559,0.00559816,2681.5,2681.1,4.3032]
[1739496207560,0.75134816,2681.5,2681.1,4.3032]
[1739496208063,0.75134816,2681.5,2681.2,0.74582]
[1739496210766,0.75134816,2681.5,2681.2,40.8]
[1739496210963,0.74576,2681.4,2681.2,41.54581]
[1739496211165,0.00559816,2681.5,2681.2,40.8]
[1739496211462,0.75134816,2681.5,2681.2,40.8]
[1739496211663,0.75134816,2681.5,2681.2,0.7458]
[1739496211860,0.74579,2681.4,2681.1,5.04903]
[1739496212364,0.551,2681.4,2681.3,0.74579]
[1739496214663,0.74582,2681.2,2681.1,4.3032]
[1739496214967,0.6001,2681.3,2681.2,0.74582]
[1739496219164,0.74582,2681.2,2681.1,3.2078]
[1739496219571,2.35982,2681.2,2681.1,3.2078]
[1739496220865,0.74587,2681.0,2680.9,0.00559816]
[1739496224973,1.33237,2681.0,2680.9,0.00559816]
[1739496229481,4.27064896,2681.0,2680.9,0.00559816]
[1739496229778,0.7461,2680.2,2680.1,3.2078]
[1739496231270,0.74612,2680.1,2680.0,0.5606]
[1739496231480,0.5434,2680.1,2679.9,0.00559816]
[1739496231676,0.74615,2680.0,2679.9,0.00559816]
[1739496232278,6.14607896,2680.3,2679.9,0.00559816]
[1739496232483,1.67883969,2680.2,2680.0,0.74614]
[1739496232685,1.618,2680.2,2680.1,0.5944]
[1739496234077,0.5699,2680.5,2680.1,1.3405]
[1739496234078,0.74605,2680.4,2680.1,1.3405]
[1739496234283,1.618,2680.3,2680.2,1.3445]
[1739496234473,1.618,2680.3,2680.2,1.9026]
[1739496239289,1.618,2680.3,2680.2,1.1565]
[1739496239485,2.36407,2680.3,2680.2,1.1565]
[1739496239684,2.36407,2680.3,2680.2,0.5984]
[1739496239886,0.7461,2680.2,2680.1,0.5944]
[1739496240286,1.618,2680.3,2680.0,0.5649]
[1739496240593,1.32822,2680.1,2680.0,0.5649]
[1739496241483,0.74615,2680.0,2679.9,0.00559816]
[1739496243987,0.5821,2680.1,2679.9,0.75176816]
[1739496244195,1.618,2680.3,2679.9,0.00559816]
[1739496244394,1.615,2680.3,2680.1,0.7461]
[1739496244589,1.615,2680.3,2680.2,1.1396]
[1739496245088,1.615,2680.3,2680.2,1.8857]
[1739496245288,3.2078,2680.7,2680.4,0.74604]
[1739496245591,1.617,2680.6,2680.4,0.74604]
[1739496245796,1.616,2680.7,2680.3,0.5665]
[1739496245995,0.746,2680.6,2680.3,0.5665]
[1739496246293,1.616,2680.7,2680.5,0.74601]
[1739496246494,1.616,2680.7,2680.3,0.5665]
[1739496247092,0.74604,2680.4,2680.3,0.5665]
[1739496247293,0.74607,2680.3,2680.2,0.5589]
[1739496247494,0.74615,2680.0,2679.9,0.00559816]
[1739496248391,0.74615,2680.0,2679.5,0.5833]
[1739496248392,0.74626,2679.6,2679.5,0.5833]
[1739496249696,1.62,2679.7,2679.5,1.32959]
[1739496250192,1.62,2679.7,2679.6,0.5496]
[1739496251192,2.36624,2679.7,2679.6,0.5496]
[1739496251389,0.74626,2679.6,2679.4,3.2078]
[1739496251689,2.36626,2679.7,2679.4,3.2078]
[1739496251996,1.62,2679.7,2679.4,3.9541]
[1739496252196,1.62,2679.7,2679.5,1.33409]
[1739496252589,1.62,2679.7,2679.5,0.5878]
[1739496252791,1.62,2679.7,2679.5,1.33409]
[1739496252992,1.62,2679.7,2679.5,0.5878]
[1739496253495,0.74628,2679.6,2679.4,3.2078]
[1739496253693,1.29518,2679.6,2679.4,3.2078]
[1739496255489,0.5489,2679.6,2679.4,3.2078]
[1739496256495,0.74629,2679.5,2679.4,3.2078]
[1739496256697,1.84498,2679.6,2679.4,3.2078]
[1739496257598,1.0987,2679.6,2679.4,3.2078]
[1739496257796,0.74629,2679.5,2679.4,3.2078]
[1739496260989,1.0987,2679.6,2679.4,3.2078]
[1739496261194,2.91545,2679.7,2679.4,3.95411]
[1739496261600,0.74627,2679.6,2679.4,3.95411]
[1739496261999,0.74627,2679.6,2679.4,3.2078]
[1739496262297,1.29545,2679.7,2679.4,3.95409]
[1739496262500,1.617,2679.6,2679.5,0.74629]
[1739496262893,1.617,2679.6,2679.4,3.2078]
[1739496263099,2.36328,2679.6,2679.4,3.2078]
[1739496263298,0.74629,2679.5,2679.4,3.2078]
[1739496264001,1.617,2679.6,2679.4,3.2078]
[1739496264194,0.74629,2679.5,2679.4,3.2078]
[1739496265502,2.36328,2679.6,2679.4,3.95412]
[1739496265703,0.74629,2679.5,2679.4,3.2078]
[1739496266702,2.36329,2679.6,2679.4,3.95411]
[1739496267405,2.36329,2679.6,2679.4,3.2078]
[1739496267600,1.617,2679.6,2679.4,3.2078]
[1739496267998,1.617,2679.6,2679.4,3.9541]
[1739496269104,1.617,2679.6,2679.4,3.2078]
[1739496269495,1.617,2679.6,2679.4,3.9541]
[1739496269699,1.617,2679.6,2679.4,3.2078]
[1739496269900,1.617,2679.6,2679.5,0.74629]
[1739496272507,0.74629,2679.5,2679.4,3.2078]
[1739496272701,2.34848861,2679.6,2679.4,3.95412]
[1739496273201,1.60220861,2679.6,2679.4,3.2078]
[1739496273406,1.60220861,2679.6,2679.5,0.74629]
[1739496275904,1.60220861,2679.6,2679.4,3.2078]
[1739496276104,0.74629,2679.5,2679.4,3.2078]
[1739496276304,1.60220861,2679.6,2679.4,3.95411]
[1739496276305,2.34848861,2679.6,2679.4,3.95411]
[1739496276504,2.34848861,2679.6,2679.4,44.75411]
[1739496276705,2.34848861,2679.6,2679.4,3.95411]
[1739496277507,2.34848861,2679.6,2679.5,0.74629]
[1739496277807,1.60220861,2679.6,2679.5,0.74629]
[1739496282003,2.1642,2679.7,2679.6,0.74626]
[1739496282604,2.1642,2679.7,2679.6,1.29776]
[1739496283909,1.615,2679.7,2679.6,1.29776]
[1739496288309,2.36124,2679.7,2679.6,0.5515]
[1739496288513,2.36124,2679.7,2679.5,1.29229]
[1739496289713,1.615,2679.7,2679.6,0.74626]
[1739496291314,2.36125,2679.7,2679.5,1.29228]
[1739496291816,2.36125,2679.7,2679.5,1.29227]
[1739496292415,2.36125,2679.7,2679.6,0.74626]
[1739496292614,1.615,2679.7,2679.6,0.74626]
[1739496294024,1.615,2679.7,2679.4,3.2078]
[1739496294317,1.615,2679.7,2679.6,0.74626]
[1739496303623,0.00559816,2679.8,2679.7,0.74624]
[1739496303929,0.00559816,2679.8,2679.7,3.95404]
[1739496304329,0.00559816,2679.8,2679.7,5.65854]
[1739496306034,0.00559816,2679.8,2679.7,3.7731]
[1739496306328,0.74626,2679.6,2679.5,2.936]
[1739496307825,0.80711115,2679.6,2679.5,2.936]
[1739496308024,0.80711115,2679.6,2679.3,0.00559816]
[1739496308025,0.74632,2679.4,2679.3,0.00559816]
[1739496308226,2.36132,2679.4,2679.3,0.00559816]
[1739496308527,5.29959896,2679.4,2679.3,0.00559816]
[1739496308731,8.50739896,2679.4,2679.3,0.00559816]
[1739496309833,4.8228,2679.4,2679.3,0.00559816]